[Event "Titled Tuesday Blitz June 1 2021"]
[White "Muthaiah AL"]
[Black "Herrera Reyes, Jose Antonio"]
[WhiteFideId "5092442"]
[BlackFideId "2274914"]
[WhiteElo "2184"]
[BlackElo "2370"]
[Result "1-0"]
[Round "04"]
[TimeControl "180+1"]
[Date "2021.06.01"]
[WhiteClock "0:00:06"]
[BlackClock "0:00:05"]

1. b3 {[%clk 0:03:00]}  Nf6 {[%clk 0:02:59]} 2. Bb2 {[%clk 0:02:59]}  g6 {[%clk 0:03:00]} 3. c4 {[%clk 0:02:56]}  Bg7 {[%clk 0:02:59]} 4. Nf3 {[%clk 0:02:55]}  O-O {[%clk 0:02:59]} 5. e3 {[%clk 0:02:55]}  d6 {[%clk 0:03:00]} 6. Be2 {[%clk 0:02:54]}  Nc6 {[%clk 0:03:00]} 7. d4 {[%clk 0:02:52]}  a5 {[%clk 0:02:58]} 8. a3 {[%clk 0:02:50]}  b6 {[%clk 0:02:58]} 9. d5 {[%clk 0:02:42]}  Nb8 {[%clk 0:02:58]} 10. O-O {[%clk 0:02:41]}  Nbd7 {[%clk 0:02:58]} 11. Nd4 {[%clk 0:02:38]}  Bb7 {[%clk 0:02:58]} 12. Nc3 {[%clk 0:02:34]}  Nc5 {[%clk 0:02:57]} 13. Bf3 {[%clk 0:02:33]}  Nfd7 {[%clk 0:02:45]} 14. b4 {[%clk 0:02:25]}  Na6 {[%clk 0:02:36]} 15. Qb3 {[%clk 0:02:12]}  Ne5 {[%clk 0:02:32]} 16. Be2 {[%clk 0:02:11]}  Rb8 {[%clk 0:02:22]} 17. Rfd1 {[%clk 0:01:58]}  Nd7 {[%clk 0:02:19]} 18. Ncb5 {[%clk 0:01:48]}  Ne5 {[%clk 0:02:15]} 19. f4 {[%clk 0:01:43]}  Nd7 {[%clk 0:02:14]} 20. Na7 {[%clk 0:01:43]}  Ra8 {[%clk 0:01:56]} 21. Nac6 {[%clk 0:01:40]}  Qe8 {[%clk 0:01:56]} 22. Bf3 {[%clk 0:00:48]}  Nf6 {[%clk 0:01:45]} 23. e4 {[%clk 0:00:32]}  Nd7 {[%clk 0:01:38]} 24. Re1 {[%clk 0:00:20]}  e5 {[%clk 0:01:37]} 25. dxe6 {[%clk 0:00:20]}  fxe6 {[%clk 0:01:38]} 26. e5 {[%clk 0:00:19]}  dxe5 {[%clk 0:01:36]} 27. fxe5 {[%clk 0:00:19]}  Kh8 {[%clk 0:01:33]} 28. Rad1 {[%clk 0:00:17]}  axb4 {[%clk 0:01:32]} 29. axb4 {[%clk 0:00:17]}  Rf4 {[%clk 0:01:29]} 30. g3 {[%clk 0:00:15]}  Rf7 {[%clk 0:01:23]} 31. Bg4 {[%clk 0:00:14]}  Bxc6 {[%clk 0:01:03]} 32. Nxc6 {[%clk 0:00:14]}  Ndc5 {[%clk 0:01:04]} 33. bxc5 {[%clk 0:00:13]}  Qxc6 {[%clk 0:01:04]} 34. cxb6 {[%clk 0:00:12]}  cxb6 {[%clk 0:01:03]} 35. Rd6 {[%clk 0:00:08]}  Qc5+ {[%clk 0:01:01]} 36. Bd4 {[%clk 0:00:09]}  Qa5 {[%clk 0:01:01]} 37. Re2 {[%clk 0:00:04]}  Nc5 {[%clk 0:01:01]} 38. Qxb6 {[%clk 0:00:03]}  Qxb6 {[%clk 0:00:36]} 39. Rxb6 {[%clk 0:00:04]}  Nd7 {[%clk 0:00:35]} 40. Bxe6 {[%clk 0:00:03]}  Nxb6 {[%clk 0:00:34]} 41. Bxf7 {[%clk 0:00:03]}  Na4 {[%clk 0:00:31]} 42. Bd5 {[%clk 0:00:03]}  Rc8 {[%clk 0:00:31]} 43. Ra2 {[%clk 0:00:03]}  Nb6 {[%clk 0:00:24]} 44. Bxb6 {[%clk 0:00:02]}  Bxe5 {[%clk 0:00:24]} 45. Kg2 {[%clk 0:00:02]}  Kg7 {[%clk 0:00:24]} 46. c5 {[%clk 0:00:02]}  Kh6 {[%clk 0:00:23]} 47. c6 {[%clk 0:00:01]}  Bd6 {[%clk 0:00:24]} 48. Kf3 {[%clk 0:00:02]}  Rb8 {[%clk 0:00:24]} 49. Be3+ {[%clk 0:00:01]}  g5 {[%clk 0:00:24]} 50. Ke2 {[%clk 0:00:01]}  Rb5 {[%clk 0:00:24]} 51. Rc2 {[%clk 0:00:02]}  Rxd5 {[%clk 0:00:23]} 52. c7 {[%clk 0:00:03]}  Bxc7 {[%clk 0:00:20]} 53. Rxc7 {[%clk 0:00:04]}  Ra5 {[%clk 0:00:21]} 54. Kf3 {[%clk 0:00:04]}  Ra6 {[%clk 0:00:20]} 55. g4 {[%clk 0:00:04]}  Kg6 {[%clk 0:00:20]} 56. h3 {[%clk 0:00:04]}  h6 {[%clk 0:00:20]} 57. Rb7 {[%clk 0:00:03]}  Ra3 {[%clk 0:00:20]} 58. Rb6+ {[%clk 0:00:03]}  Kg7 {[%clk 0:00:20]} 59. Ke4 {[%clk 0:00:03]}  Ra4+ {[%clk 0:00:21]} 60. Bd4+ {[%clk 0:00:04]}  Kh7 {[%clk 0:00:21]} 61. Rb7+ {[%clk 0:00:04]}  Kg8 {[%clk 0:00:15]} 62. Rd7 {[%clk 0:00:05]}  Ra5 {[%clk 0:00:14]} 63. Be5 {[%clk 0:00:04]}  Ra3 {[%clk 0:00:12]} 64. Kf5 {[%clk 0:00:05]}  Rxh3 {[%clk 0:00:12]} 65. Kg6 {[%clk 0:00:05]}  Kf8 {[%clk 0:00:13]} 66. Bf6 {[%clk 0:00:04]}  Re3 {[%clk 0:00:04]} 67. Rd8+ {[%clk 0:00:05]}  Re8 {[%clk 0:00:04]} 68. Rxe8+ {[%clk 0:00:05]}  Kxe8 {[%clk 0:00:05]} 69. Kxh6 {[%clk 0:00:06]} 1-0


[Site "https://www.chess.com"]

[Event "Titled Tuesday Blitz June 1 2021"]
[White "Oparin, Grigoriy"]
[Black "Vukovic, Zdravko"]
[WhiteFideId "24125890"]
[BlackFideId "900877"]
[WhiteElo "2628"]
[BlackElo "2536"]
[Result "1-0"]
[Round "04"]
[TimeControl "180+1"]
[Date "2021.06.01"]
[WhiteClock "0:02:09"]
[BlackClock "0:00:40"]

1. Nc3 {[%clk 0:03:00]}  Nf6 {[%clk 0:02:58]} 2. e4 {[%clk 0:03:00]}  e5 {[%clk 0:02:52]} 3. Bc4 {[%clk 0:03:01]}  Bc5 {[%clk 0:02:50]} 4. d3 {[%clk 0:03:00]}  h6 {[%clk 0:02:48]} 5. f4 {[%clk 0:02:58]}  d6 {[%clk 0:02:48]} 6. Na4 {[%clk 0:02:36]}  Bb6 {[%clk 0:02:18]} 7. Nxb6 {[%clk 0:02:35]}  axb6 {[%clk 0:02:19]} 8. Nf3 {[%clk 0:02:34]}  Bg4 {[%clk 0:02:18]} 9. O-O {[%clk 0:02:34]}  O-O {[%clk 0:02:19]} 10. h3 {[%clk 0:02:34]}  Bh5 {[%clk 0:02:19]} 11. g4 {[%clk 0:02:34]}  Nxg4 {[%clk 0:02:18]} 12. hxg4 {[%clk 0:02:33]}  Bxg4 {[%clk 0:02:19]} 13. Qd2 {[%clk 0:02:32]}  Nc6 {[%clk 0:02:12]} 14. Qg2 {[%clk 0:02:32]}  h5 {[%clk 0:02:00]} 15. f5 {[%clk 0:02:32]}  Kh7 {[%clk 0:01:46]} 16. Ng5+ {[%clk 0:02:14]}  Kg8 {[%clk 0:01:39]} 17. a3 {[%clk 0:02:10]}  Nd4 {[%clk 0:01:28]} 18. Rf2 {[%clk 0:02:09]}  b5 {[%clk 0:01:14]} 19. Ba2 {[%clk 0:02:09]}  Qf6 {[%clk 0:00:59]} 20. c3 {[%clk 0:02:09]}  Nc6 {[%clk 0:00:41]} 21. Nf3 {[%clk 0:02:09]}  Ne7 {[%clk 0:00:40]} 22. Bg5 {[%clk 0:02:09]} 1-0


[Site "https://www.chess.com"]

[Event "Titled Tuesday Blitz June 1 2021"]
[White "Pajeken, Jakob Leon"]
[Black "Maly, Alexey"]
[WhiteFideId "12942839"]
[BlackFideId "14103184"]
[WhiteElo "2024"]
[BlackElo "2314"]
[Result "1-0"]
[Round "04"]
[TimeControl "180+1"]
[Date "2021.06.01"]
[WhiteClock "0:01:27"]
[BlackClock "0:00:25"]

1. d4 {[%clk 0:03:00]}  d5 {[%clk 0:03:00]} 2. Nf3 {[%clk 0:03:00]}  Nf6 {[%clk 0:02:59]} 3. Bf4 {[%clk 0:03:00]}  e6 {[%clk 0:02:59]} 4. e3 {[%clk 0:03:01]}  c5 {[%clk 0:02:59]} 5. c3 {[%clk 0:03:00]}  Bd6 {[%clk 0:03:00]} 6. Bb5+ {[%clk 0:03:00]}  Nc6 {[%clk 0:02:59]} 7. Bxc6+ {[%clk 0:03:00]}  bxc6 {[%clk 0:02:59]} 8. Bxd6 {[%clk 0:03:01]}  Qxd6 {[%clk 0:02:59]} 9. Qa4 {[%clk 0:03:01]}  cxd4 {[%clk 0:02:54]} 10. cxd4 {[%clk 0:03:01]}  O-O {[%clk 0:02:51]} 11. Nbd2 {[%clk 0:03:00]}  a5 {[%clk 0:02:45]} 12. O-O {[%clk 0:02:55]}  Ba6 {[%clk 0:02:45]} 13. Rfc1 {[%clk 0:02:54]}  Rfc8 {[%clk 0:02:45]} 14. Nb3 {[%clk 0:02:49]}  Bb5 {[%clk 0:02:39]} 15. Qa3 {[%clk 0:02:49]}  Qxa3 {[%clk 0:02:33]} 16. bxa3 {[%clk 0:02:50]}  Ne4 {[%clk 0:02:31]} 17. Nc5 {[%clk 0:02:49]}  Nd6 {[%clk 0:02:25]} 18. Ne5 {[%clk 0:02:47]}  Nc4 {[%clk 0:02:21]} 19. a4 {[%clk 0:02:39]}  Nxe5 {[%clk 0:02:16]} 20. axb5 {[%clk 0:02:38]}  Nc4 {[%clk 0:02:16]} 21. Rxc4 {[%clk 0:02:14]}  dxc4 {[%clk 0:02:14]} 22. b6 {[%clk 0:02:14]}  Rcb8 {[%clk 0:02:06]} 23. Na4 {[%clk 0:02:11]}  Ra6 {[%clk 0:02:01]} 24. Rb1 {[%clk 0:02:11]}  c3 {[%clk 0:01:58]} 25. Kf1 {[%clk 0:02:09]}  c2 {[%clk 0:01:54]} 26. Rc1 {[%clk 0:02:08]}  Raxb6 {[%clk 0:01:53]} 27. Nxb6 {[%clk 0:02:08]}  Rxb6 {[%clk 0:01:54]} 28. Rxc2 {[%clk 0:02:08]}  Kf8 {[%clk 0:01:53]} 29. Ke2 {[%clk 0:02:08]}  Ke7 {[%clk 0:01:53]} 30. Kd3 {[%clk 0:02:09]}  Kd6 {[%clk 0:01:53]} 31. g4 {[%clk 0:02:07]}  Rb5 {[%clk 0:01:48]} 32. h4 {[%clk 0:02:03]}  c5 {[%clk 0:01:44]} 33. a4 {[%clk 0:01:53]}  Rb3+ {[%clk 0:01:41]} 34. Rc3 {[%clk 0:01:51]}  Rxc3+ {[%clk 0:01:36]} 35. Kxc3 {[%clk 0:01:52]}  Kd5 {[%clk 0:01:33]} 36. h5 {[%clk 0:01:42]}  cxd4+ {[%clk 0:01:24]} 37. exd4 {[%clk 0:01:43]}  Ke4 {[%clk 0:01:09]} 38. Kc4 {[%clk 0:01:43]}  h6 {[%clk 0:01:03]} 39. Kc5 {[%clk 0:01:30]}  g6 {[%clk 0:00:43]} 40. g5 {[%clk 0:01:27]}  hxg5 {[%clk 0:00:23]} 41. h6 {[%clk 0:01:27]}  g4 {[%clk 0:00:24]} 42. h7 {[%clk 0:01:27]}  g3 {[%clk 0:00:25]} 43. fxg3 {[%clk 0:01:27]} 1-0


[Site "https://www.chess.com"]

[Event "Titled Tuesday Blitz June 1 2021"]
[White "Petriashvili, Nikoloz"]
[Black "Fedoseev, Vladimir"]
[WhiteFideId "13611216"]
[BlackFideId "24130737"]
[WhiteElo "2430"]
[BlackElo "2756"]
[Result "0-1"]
[Round "04"]
[TimeControl "180+1"]
[Date "2021.06.01"]
[WhiteClock "0:00:15"]
[BlackClock "0:00:19"]

1. e4 {[%clk 0:03:00]}  c6 {[%clk 0:02:55]} 2. d4 {[%clk 0:03:00]}  d5 {[%clk 0:02:55]} 3. Nc3 {[%clk 0:03:00]}  dxe4 {[%clk 0:02:50]} 4. Nxe4 {[%clk 0:03:01]}  Nd7 {[%clk 0:02:50]} 5. Bd3 {[%clk 0:02:46]}  g6 {[%clk 0:02:46]} 6. Nf3 {[%clk 0:02:45]}  Bg7 {[%clk 0:02:45]} 7. O-O {[%clk 0:02:45]}  Ngf6 {[%clk 0:02:45]} 8. h3 {[%clk 0:02:36]}  O-O {[%clk 0:02:44]} 9. c3 {[%clk 0:02:37]}  Qc7 {[%clk 0:02:40]} 10. Re1 {[%clk 0:02:36]}  c5 {[%clk 0:02:36]} 11. Nxf6+ {[%clk 0:02:34]}  Nxf6 {[%clk 0:02:31]} 12. dxc5 {[%clk 0:02:30]}  Qxc5 {[%clk 0:02:29]} 13. Be3 {[%clk 0:02:30]}  Qc7 {[%clk 0:02:28]} 14. Bd4 {[%clk 0:02:30]}  b6 {[%clk 0:02:13]} 15. Qe2 {[%clk 0:02:30]}  e6 {[%clk 0:02:11]} 16. Be5 {[%clk 0:02:18]}  Qe7 {[%clk 0:02:09]} 17. Rad1 {[%clk 0:02:16]}  Bb7 {[%clk 0:02:07]} 18. Ba6 {[%clk 0:02:06]}  Rfd8 {[%clk 0:02:02]} 19. Bxb7 {[%clk 0:02:03]}  Qxb7 {[%clk 0:02:01]} 20. Rxd8+ {[%clk 0:02:03]}  Rxd8 {[%clk 0:01:59]} 21. Rd1 {[%clk 0:02:04]}  Rxd1+ {[%clk 0:01:56]} 22. Qxd1 {[%clk 0:02:05]}  Qd5 {[%clk 0:01:56]} 23. Qxd5 {[%clk 0:01:59]}  Nxd5 {[%clk 0:01:55]} 24. Kf1 {[%clk 0:02:00]}  f6 {[%clk 0:01:43]} 25. Bb8 {[%clk 0:01:59]}  a6 {[%clk 0:01:41]} 26. c4 {[%clk 0:01:59]}  Nb4 {[%clk 0:01:37]} 27. Ba7 {[%clk 0:01:57]}  b5 {[%clk 0:01:34]} 28. cxb5 {[%clk 0:01:46]}  axb5 {[%clk 0:01:34]} 29. a3 {[%clk 0:01:46]}  Nc6 {[%clk 0:01:32]} 30. Bc5 {[%clk 0:01:45]}  f5 {[%clk 0:01:28]} 31. b3 {[%clk 0:01:44]}  Na5 {[%clk 0:01:27]} 32. Nd2 {[%clk 0:01:20]}  Bc3 {[%clk 0:01:25]} 33. Nb1 {[%clk 0:01:20]}  Bb2 {[%clk 0:01:24]} 34. Nd2 {[%clk 0:00:31]}  Bc1 {[%clk 0:01:23]} 35. Bb4 {[%clk 0:00:31]}  Bxd2 {[%clk 0:01:16]} 36. Bxd2 {[%clk 0:00:31]}  Nxb3 {[%clk 0:01:15]} 37. Be3 {[%clk 0:00:32]}  e5 {[%clk 0:01:13]} 38. Ke2 {[%clk 0:00:32]}  Kf7 {[%clk 0:01:06]} 39. Kd3 {[%clk 0:00:33]}  Na5 {[%clk 0:01:06]} 40. Kc3 {[%clk 0:00:32]}  Nc6 {[%clk 0:01:06]} 41. Kb3 {[%clk 0:00:24]}  Ke6 {[%clk 0:01:02]} 42. a4 {[%clk 0:00:24]}  bxa4+ {[%clk 0:01:01]} 43. Kxa4 {[%clk 0:00:25]}  f4 {[%clk 0:01:00]} 44. Bb6 {[%clk 0:00:23]}  Kd5 {[%clk 0:00:58]} 45. Kb3 {[%clk 0:00:23]}  Ke4 {[%clk 0:00:47]} 46. Kc3 {[%clk 0:00:22]}  f3 {[%clk 0:00:45]} 47. gxf3+ {[%clk 0:00:17]}  Kxf3 {[%clk 0:00:43]} 48. Kc4 {[%clk 0:00:18]}  e4 {[%clk 0:00:39]} 49. Kd5 {[%clk 0:00:18]}  Nb4+ {[%clk 0:00:39]} 50. Ke5 {[%clk 0:00:18]}  Nd3+ {[%clk 0:00:39]} 51. Kf6 {[%clk 0:00:18]}  Nxf2 {[%clk 0:00:39]} 52. h4 {[%clk 0:00:15]}  e3 {[%clk 0:00:21]} 53. Kg7 {[%clk 0:00:15]}  e2 {[%clk 0:00:19]} 54. Ba5 {[%clk 0:00:15]}  Kg4 {[%clk 0:00:18]} 55. Kxh7 {[%clk 0:00:15]}  Kh5 {[%clk 0:00:19]} 0-1


[Site "https://www.chess.com"]

[Event "Titled Tuesday Blitz June 1 2021"]
[White "Przybylski, Wojciech"]
[Black "Timofeev, Artyom"]
[WhiteFideId "1117599"]
[BlackFideId "4140419"]
[WhiteElo "2317"]
[BlackElo "2582"]
[Result "0-1"]
[Round "04"]
[TimeControl "180+1"]
[Date "2021.06.01"]
[WhiteClock "0:00:13"]
[BlackClock "0:00:57"]

1. e4 {[%clk 0:02:59]}  e6 {[%clk 0:02:59]} 2. d4 {[%clk 0:02:58]}  d5 {[%clk 0:02:59]} 3. Nc3 {[%clk 0:02:58]}  dxe4 {[%clk 0:02:59]} 4. Nxe4 {[%clk 0:02:58]}  Nd7 {[%clk 0:02:59]} 5. Bd3 {[%clk 0:02:51]}  Ngf6 {[%clk 0:02:52]} 6. Ne2 {[%clk 0:02:48]}  Be7 {[%clk 0:02:46]} 7. O-O {[%clk 0:02:47]}  b6 {[%clk 0:02:46]} 8. N2g3 {[%clk 0:02:33]}  Bb7 {[%clk 0:02:44]} 9. c3 {[%clk 0:02:31]}  O-O {[%clk 0:02:43]} 10. Re1 {[%clk 0:02:30]}  c5 {[%clk 0:02:42]} 11. Be3 {[%clk 0:02:22]}  Nd5 {[%clk 0:02:41]} 12. Qh5 {[%clk 0:01:57]}  g6 {[%clk 0:02:37]} 13. Qe2 {[%clk 0:01:48]}  Nxe3 {[%clk 0:02:34]} 14. fxe3 {[%clk 0:01:45]}  e5 {[%clk 0:02:14]} 15. Ba6 {[%clk 0:01:31]}  Bxa6 {[%clk 0:02:01]} 16. Qxa6 {[%clk 0:01:30]}  cxd4 {[%clk 0:02:01]} 17. exd4 {[%clk 0:01:30]}  exd4 {[%clk 0:02:01]} 18. cxd4 {[%clk 0:01:29]}  Nf6 {[%clk 0:02:02]} 19. Rad1 {[%clk 0:01:26]}  Nd5 {[%clk 0:02:01]} 20. a3 {[%clk 0:01:20]}  Qd7 {[%clk 0:01:59]} 21. Nc3 {[%clk 0:01:15]}  Bf6 {[%clk 0:01:59]} 22. Nge4 {[%clk 0:01:06]}  Bg7 {[%clk 0:01:58]} 23. Qb5 {[%clk 0:01:03]}  Qxb5 {[%clk 0:01:57]} 24. Nxb5 {[%clk 0:01:04]}  Rfd8 {[%clk 0:01:56]} 25. Nec3 {[%clk 0:01:00]}  Nxc3 {[%clk 0:01:27]} 26. bxc3 {[%clk 0:00:34]}  a6 {[%clk 0:01:23]} 27. Nc7 {[%clk 0:00:32]}  Rac8 {[%clk 0:01:23]} 28. Nxa6 {[%clk 0:00:28]}  Rxc3 {[%clk 0:01:23]} 29. d5 {[%clk 0:00:26]}  Bf8 {[%clk 0:01:23]} 30. Nb4 {[%clk 0:00:17]}  Rxa3 {[%clk 0:01:13]} 31. Nc6 {[%clk 0:00:18]}  Bc5+ {[%clk 0:01:13]} 32. Kh1 {[%clk 0:00:17]}  Rd6 {[%clk 0:01:12]} 33. Re8+ {[%clk 0:00:17]}  Kg7 {[%clk 0:01:12]} 34. h3 {[%clk 0:00:17]}  Ra2 {[%clk 0:01:10]} 35. Re7 {[%clk 0:00:14]}  Rxc6 {[%clk 0:01:00]} 36. dxc6 {[%clk 0:00:15]}  Bxe7 {[%clk 0:01:00]} 37. c7 {[%clk 0:00:14]}  Rc2 {[%clk 0:00:59]} 38. Rd7 {[%clk 0:00:13]}  Bf6 {[%clk 0:00:57]} 39. Kg1 {[%clk 0:00:13]}  Be5 {[%clk 0:00:57]} 0-1


[Site "https://www.chess.com"]

[Event "Titled Tuesday Blitz June 1 2021"]
[White "Reprintsev, Alexander"]
[Black "NovakCabarkapa"]
[WhiteFideId "14100541"]
[WhiteElo "2177"]
[BlackElo "2816"]
[Result "0-1"]
[Round "04"]
[TimeControl "180+1"]
[Date "2021.06.01"]
[WhiteClock "0:00:06"]
[BlackClock "0:00:11"]

1. e4 {[%clk 0:02:46]}  e6 {[%clk 0:03:00]} 2. Qe2 {[%clk 0:02:45]}  c5 {[%clk 0:02:59]} 3. b3 {[%clk 0:02:45]}  Nc6 {[%clk 0:02:51]} 4. Bb2 {[%clk 0:02:45]}  b6 {[%clk 0:02:43]} 5. f4 {[%clk 0:02:43]}  Bb7 {[%clk 0:02:39]} 6. Nf3 {[%clk 0:02:43]}  Nf6 {[%clk 0:02:37]} 7. Na3 {[%clk 0:02:32]}  Nd4 {[%clk 0:02:21]} 8. Nxd4 {[%clk 0:02:29]}  cxd4 {[%clk 0:02:21]} 9. e5 {[%clk 0:02:24]}  Nd5 {[%clk 0:02:19]} 10. Qf2 {[%clk 0:02:19]}  Bc5 {[%clk 0:02:13]} 11. Bd3 {[%clk 0:02:16]}  g5 {[%clk 0:01:56]} 12. f5 {[%clk 0:01:54]}  Nf4 {[%clk 0:01:53]} 13. O-O-O {[%clk 0:01:46]}  exf5 {[%clk 0:01:45]} 14. Nc4 {[%clk 0:01:34]}  Qc7 {[%clk 0:01:11]} 15. Nd6+ {[%clk 0:01:30]}  Bxd6 {[%clk 0:01:10]} 16. exd6 {[%clk 0:01:31]}  Qxd6 {[%clk 0:01:07]} 17. Rhe1+ {[%clk 0:01:25]}  Ne6 {[%clk 0:01:06]} 18. Bxf5 {[%clk 0:01:24]}  O-O-O {[%clk 0:01:02]} 19. g3 {[%clk 0:01:21]}  h6 {[%clk 0:00:26]} 20. Kb1 {[%clk 0:01:20]}  Rhe8 {[%clk 0:00:26]} 21. c3 {[%clk 0:01:19]}  Kb8 {[%clk 0:00:24]} 22. Rf1 {[%clk 0:01:07]}  Ka8 {[%clk 0:00:24]} 23. Bh3 {[%clk 0:01:04]}  Rf8 {[%clk 0:00:22]} 24. Bg2 {[%clk 0:01:04]}  Bxg2 {[%clk 0:00:21]} 25. Qxg2+ {[%clk 0:01:04]}  Qc6 {[%clk 0:00:22]} 26. Qh3 {[%clk 0:00:59]}  Nc5 {[%clk 0:00:19]} 27. cxd4 {[%clk 0:00:47]}  Nd3 {[%clk 0:00:17]} 28. Bc3 {[%clk 0:00:47]}  b5 {[%clk 0:00:15]} 29. Qf5 {[%clk 0:00:46]}  Qg6 {[%clk 0:00:14]} 30. Kc2 {[%clk 0:00:40]}  b4 {[%clk 0:00:12]} 31. Kxd3 {[%clk 0:00:40]}  bxc3 {[%clk 0:00:12]} 32. Qxg6 {[%clk 0:00:40]}  fxg6 {[%clk 0:00:09]} 33. dxc3 {[%clk 0:00:40]}  Kb7 {[%clk 0:00:09]} 34. c4 {[%clk 0:00:39]}  d5 {[%clk 0:00:07]} 35. c5 {[%clk 0:00:39]}  Kc6 {[%clk 0:00:07]} 36. Rde1 {[%clk 0:00:35]}  Rxf1 {[%clk 0:00:02]} 37. Rxf1 {[%clk 0:00:35]}  Re8 {[%clk 0:00:02]} 38. Rf6+ {[%clk 0:00:35]}  Kb5 {[%clk 0:00:03]} 39. Rxg6 {[%clk 0:00:32]}  Re1 {[%clk 0:00:04]} 40. Rxh6 {[%clk 0:00:32]}  Rd1+ {[%clk 0:00:04]} 41. Kc3 {[%clk 0:00:31]}  Rc1+ {[%clk 0:00:05]} 42. Kb2 {[%clk 0:00:32]}  Rd1 {[%clk 0:00:05]} 43. c6 {[%clk 0:00:26]}  Kb6 {[%clk 0:00:06]} 44. Kc3 {[%clk 0:00:20]}  Rc1+ {[%clk 0:00:06]} 45. Kd2 {[%clk 0:00:20]}  Rh1 {[%clk 0:00:06]} 46. a4 {[%clk 0:00:19]}  Rg1 {[%clk 0:00:06]} 47. b4 {[%clk 0:00:19]}  a6 {[%clk 0:00:06]} 48. a5+ {[%clk 0:00:18]}  Kc7 {[%clk 0:00:06]} 49. Rg6 {[%clk 0:00:17]}  Rb1 {[%clk 0:00:06]} 50. Rxg5 {[%clk 0:00:16]}  Kxc6 {[%clk 0:00:06]} 51. Rg6+ {[%clk 0:00:16]}  Kb5 {[%clk 0:00:07]} 52. Rb6+ {[%clk 0:00:16]}  Kc4 {[%clk 0:00:08]} 53. Rxa6 {[%clk 0:00:16]}  Kxd4 {[%clk 0:00:08]} 54. Rf6 {[%clk 0:00:14]}  Rb2+ {[%clk 0:00:08]} 55. Kc1 {[%clk 0:00:14]}  Rxh2 {[%clk 0:00:08]} 56. Rf4+ {[%clk 0:00:14]}  Kc3 {[%clk 0:00:08]} 57. Kd1 {[%clk 0:00:14]}  d4 {[%clk 0:00:09]} 58. Rf8 {[%clk 0:00:13]}  Kd3 {[%clk 0:00:09]} 59. Rf3+ {[%clk 0:00:13]}  Ke4 {[%clk 0:00:08]} 60. Rf4+ {[%clk 0:00:12]}  Kd3 {[%clk 0:00:08]} 61. Rf3+ {[%clk 0:00:13]}  Ke4 {[%clk 0:00:09]} 62. Rf8 {[%clk 0:00:11]}  Ke3 {[%clk 0:00:09]} 63. a6 {[%clk 0:00:07]}  Ra2 {[%clk 0:00:09]} 64. b5 {[%clk 0:00:07]}  Kd3 {[%clk 0:00:10]} 65. Rf3+ {[%clk 0:00:06]}  Kc4 {[%clk 0:00:10]} 66. b6 {[%clk 0:00:06]}  Rxa6 {[%clk 0:00:10]} 67. b7 {[%clk 0:00:06]}  Rb6 {[%clk 0:00:11]} 68. Rf7 {[%clk 0:00:06]}  Kd3 {[%clk 0:00:11]} 69. Ke1 {[%clk 0:00:05]}  Ke3 {[%clk 0:00:11]} 70. Kf1 {[%clk 0:00:06]}  d3 {[%clk 0:00:12]} 71. Re7+ {[%clk 0:00:06]}  Kf3 {[%clk 0:00:11]} 72. Rd7 {[%clk 0:00:06]}  Rb1# {[%clk 0:00:11]} 0-1


[Site "https://www.chess.com"]

[Event "Titled Tuesday Blitz June 1 2021"]
[White "Ronka, Erik"]
[Black "Nenezic, Marko"]
[WhiteFideId "505080"]
[BlackFideId "912123"]
[WhiteElo "2264"]
[BlackElo "2438"]
[Result "0-1"]
[Round "04"]
[TimeControl "180+1"]
[Date "2021.06.01"]
[WhiteClock "0:00:04"]
[BlackClock "0:00:17"]

1. e4 {[%clk 0:03:00]}  c5 {[%clk 0:03:00]} 2. a3 {[%clk 0:03:00]}  d5 {[%clk 0:02:52]} 3. exd5 {[%clk 0:03:00]}  Qxd5 {[%clk 0:02:53]} 4. Nc3 {[%clk 0:02:59]}  Qd8 {[%clk 0:02:47]} 5. b4 {[%clk 0:02:59]}  e6 {[%clk 0:02:45]} 6. Nf3 {[%clk 0:02:58]}  Nc6 {[%clk 0:02:45]} 7. Bb5 {[%clk 0:02:53]}  Bd7 {[%clk 0:02:42]} 8. O-O {[%clk 0:02:52]}  Nf6 {[%clk 0:02:41]} 9. bxc5 {[%clk 0:02:39]}  Bxc5 {[%clk 0:02:41]} 10. d4 {[%clk 0:02:40]}  Be7 {[%clk 0:02:38]} 11. Bf4 {[%clk 0:02:22]}  O-O {[%clk 0:02:37]} 12. Qd3 {[%clk 0:02:21]}  a6 {[%clk 0:02:33]} 13. Ba4 {[%clk 0:02:20]}  b5 {[%clk 0:02:33]} 14. Bb3 {[%clk 0:02:20]}  Na5 {[%clk 0:02:33]} 15. Ne5 {[%clk 0:02:17]}  Rc8 {[%clk 0:02:29]} 16. Ne4 {[%clk 0:02:07]}  Nxb3 {[%clk 0:02:20]} 17. cxb3 {[%clk 0:02:05]}  Nxe4 {[%clk 0:01:40]} 18. Qxe4 {[%clk 0:02:04]}  Rc3 {[%clk 0:01:41]} 19. b4 {[%clk 0:01:40]}  Bc8 {[%clk 0:01:40]} 20. Rac1 {[%clk 0:01:30]}  Rxc1 {[%clk 0:01:38]} 21. Rxc1 {[%clk 0:01:31]}  Bf6 {[%clk 0:01:35]} 22. h3 {[%clk 0:01:23]}  h6 {[%clk 0:01:35]} 23. Rc5 {[%clk 0:01:10]}  Qe7 {[%clk 0:01:25]} 24. Qc6 {[%clk 0:01:01]}  Bb7 {[%clk 0:01:20]} 25. Qb6 {[%clk 0:00:52]}  Rc8 {[%clk 0:01:13]} 26. Rxc8+ {[%clk 0:00:51]}  Bxc8 {[%clk 0:01:13]} 27. Qb8 {[%clk 0:00:43]}  Qb7 {[%clk 0:01:11]} 28. Qd6 {[%clk 0:00:34]}  Qe4 {[%clk 0:01:10]} 29. Be3 {[%clk 0:00:28]}  Bb7 {[%clk 0:01:07]} 30. Nf3 {[%clk 0:00:24]}  Qc6 {[%clk 0:01:01]} 31. Qxc6 {[%clk 0:00:11]}  Bxc6 {[%clk 0:01:02]} 32. Ne5 {[%clk 0:00:12]}  Bb7 {[%clk 0:01:02]} 33. f3 {[%clk 0:00:12]}  h5 {[%clk 0:00:59]} 34. Nd7 {[%clk 0:00:11]}  Be7 {[%clk 0:00:58]} 35. Nc5 {[%clk 0:00:11]}  Bc8 {[%clk 0:00:58]} 36. Kf2 {[%clk 0:00:11]}  h4 {[%clk 0:00:58]} 37. Ke2 {[%clk 0:00:07]}  Kf8 {[%clk 0:00:52]} 38. Kd3 {[%clk 0:00:08]}  g5 {[%clk 0:00:45]} 39. Ne4 {[%clk 0:00:07]}  f6 {[%clk 0:00:45]} 40. Nc3 {[%clk 0:00:07]}  Bb7 {[%clk 0:00:42]} 41. Ne4 {[%clk 0:00:07]}  Kf7 {[%clk 0:00:40]} 42. Nc5 {[%clk 0:00:07]}  Bc8 {[%clk 0:00:40]} 43. Ke4 {[%clk 0:00:07]}  Bd6 {[%clk 0:00:35]} 44. Kd3 {[%clk 0:00:03]}  Kg6 {[%clk 0:00:34]} 45. d5 {[%clk 0:00:02]}  exd5 {[%clk 0:00:32]} 46. Kd4 {[%clk 0:00:03]}  Be5+ {[%clk 0:00:25]} 47. Kxd5 {[%clk 0:00:03]}  Bb2 {[%clk 0:00:24]} 48. Kc6 {[%clk 0:00:03]}  Bxa3 {[%clk 0:00:23]} 49. Kc7 {[%clk 0:00:04]}  Bf5 {[%clk 0:00:23]} 50. Nxa6 {[%clk 0:00:04]}  Bd3 {[%clk 0:00:23]} 51. Kb6 {[%clk 0:00:04]}  Bf1 {[%clk 0:00:24]} 52. Nc7 {[%clk 0:00:04]}  Bxg2 {[%clk 0:00:24]} 53. Nxb5 {[%clk 0:00:05]}  Bb2 {[%clk 0:00:21]} 54. Bd4 {[%clk 0:00:04]}  Bc1 {[%clk 0:00:20]} 55. Kc7 {[%clk 0:00:04]}  Bxh3 {[%clk 0:00:20]} 56. Nd6 {[%clk 0:00:04]}  Bg2 {[%clk 0:00:19]} 57. b5 {[%clk 0:00:04]}  h3 {[%clk 0:00:20]} 58. b6 {[%clk 0:00:04]}  Bxf3 {[%clk 0:00:20]} 59. Bg1 {[%clk 0:00:02]}  Bf4 {[%clk 0:00:20]} 60. Kd7 {[%clk 0:00:02]}  h2 {[%clk 0:00:19]} 61. b7 {[%clk 0:00:02]}  Bxb7 {[%clk 0:00:18]} 62. Bxh2 {[%clk 0:00:02]}  Bxh2 {[%clk 0:00:18]} 63. Nxb7 {[%clk 0:00:02]}  Kf5 {[%clk 0:00:18]} 64. Kc6 {[%clk 0:00:02]}  Be5 {[%clk 0:00:17]} 65. Kd5 {[%clk 0:00:03]}  g4 {[%clk 0:00:17]} 66. Kc4 {[%clk 0:00:04]}  g3 {[%clk 0:00:16]} 67. Kd3 {[%clk 0:00:04]}  g2 {[%clk 0:00:17]} 0-1


[Site "https://www.chess.com"]